Cogmind - Beta 13 @@@ ROGUE MODE // 2024.06.15 @ 12:37:01 Player: Blade Result: Self-destructed Performance ------------- Evolutions (8) 4000 Regions Visited (11) 2200 Robots Destroyed (64) 320 Value Destroyed (1566) 1566 Prototype IDs (3) 60 Alien Tech Used (0) 0 Bonus (141) 141 TOTAL SCORE: 8287 Bonus ------- High Alert Combat Kills 56 Follower Combat Kills 85 Cogmind --------- Core Integrity 1245/1450 Matter 243/300 Energy 100/100 System Corruption 0% Temperature Cool (0) Movement Core (50) Location -2/Research Parts ------- > --- POWER (1) -------- (None) > --- PROPULSION (5) --- (None) > --- UTILITY (15) ----- Enhanced Optical Array Improved Signal Interpreter Improved Terrain Scan Processor Advanced Terrain Scan Processor System Shield > --- WEAPON (2) ------- (None) > --- INVENTORY (5) ---- Enhanced Optical Array Enhanced Optical Array Improved Signal Interpreter Improved Transmission Jammer Peak State ------------ > --- POWER ------------ Light Quantum Reactor > --- PROPULSION ------- Impulse Thruster Field Propulsion Array Q-thruster > --- UTILITY ---------- Enhanced Optical Array Improved Sensor Array Improved Signal Interpreter Improved Signal Interpreter Improved Terrain Scan Processor Advanced Terrain Scan Processor System Shield > --- WEAPON ----------- Dispersion Rifle > --- INVENTORY -------- Compact Wheel Enhanced Optical Array Enhanced Optical Array Improved Signal Interpreter Improved Transmission Jammer [Rating: 71] Favorites ----------- Power Improved Ion Engine Engine Improved Ion Engine Power Core Neutrino Core Reactor Light Quantum Reactor Propulsion Aluminum Leg Leg Aluminum Leg Wheel Compact Wheel Hover Unit Airjet Flight Unit Flight Unit Utility System Shield Device Improved Sensor Array Storage Small Storage Unit Processor Improved Signal Interpreter Hackware System Shield Protection Hardened Light Armor Plating Weapon Assault Rifle Energy Gun Beam Rifle Energy Cannon Heavy Particle Cannon Ballistic Gun Assault Rifle Launcher Rocket Launcher Slashing Weapon Katana Piercing Weapon Spear Build | -11 -10 -10 -9 -8 -7 -6 -5 -5 -4 -3 -2 ------- Run | Yrd Mat Min Mat Mat Fac Fac Fac Ext Fac Res Res Slots Evolved 16 | . . . 2 2 2 2 2 . 2 2 2 Power . | . . . . . . . . . . . . Propulsion 3 | . . . 2 . 1 . . . . . . Utility 13 | . . . . 2 1 2 2 . 2 2 2 Weapon . | . . . . . . . . . . . . Parts Attached 91 | . 7 5 15 16 11 13 9 2 3 4 6 Power 12 | . 2 . 2 2 1 . 2 . . . 3 Engine 6 | . 2 . 2 1 . . . . . . 1 Core 4 | . . . . 1 1 . 2 . . . . Reactor 2 | . . . . . . . . . . . 2 Propulsion 29 | . 2 3 6 6 4 . 3 1 1 3 . Treads . | . . . . . . . . . . . . Leg 10 | . 2 2 6 . . . . . . . . Wheel 3 | . . 1 . . . . 2 . . . . Hover 1 | . . . . . 1 . . . . . . Flight 15 | . . . . 6 3 . 1 1 1 3 . Utility 28 | . . . 1 4 4 10 4 . 2 1 2 Device 13 | . . . . 1 1 5 3 . 1 . 2 Storage 1 | . . . . . 1 . . . . . . Processor 5 | . . . . . . 4 . . 1 . . Hackware 8 | . . . . 3 2 1 1 . . 1 . Protection 1 | . . . 1 . . . . . . . . Artifact . | . . . . . . . . . . . . Weapon 22 | . 3 2 6 4 2 3 . 1 . . 1 Energy Gun 8 | . . 2 1 3 . 1 . . . . 1 Energy Cannon 3 | . . . 3 . . . . . . . . Ballistic Gun 5 | . 3 . 2 . . . . . . . . Ballistic Cannon . | . . . . . . . . . . . . Launcher 2 | . . . . 1 1 . . . . . . Special Weapon . | . . . . . . . . . . . . Impact Weapon . | . . . . . . . . . . . . Slashing Weapon 2 | . . . . . 1 . . 1 . . . Piercing Weapon 2 | . . . . . . 2 . . . . . Special Melee Weapon . | . . . . . . . . . . . . Unidentified Prototypes 3 | . . . . 1 1 . 1 . . . . Parts Lost 41 | . 1 4 3 3 12 3 2 4 2 2 5 Power 3 | . 1 1 . 1 . . . . . . . Propulsion 18 | . . 2 2 1 6 1 . 1 1 1 3 Utility 16 | . . . . 1 5 2 2 3 1 . 2 Weapon 4 | . . 1 1 . 1 . . . . 1 . Highest Loss Streak 6 | . 1 2 2 2 6 3 1 2 2 1 4 To Critical Strikes . | . . . . . . . . . . . . Average Slot Usage (%) 69 | . 84 69 83 79 71 49 67 62 40 46 46 Engine 5 | . 13 10 9 7 . . . . . . . Leg 15 | . 27 14 36 24 . . . . . . . Wheel 1 | . . 3 . . . . 10 5 . . . Flight 4 | . . . . 4 24 1 . 1 8 14 12 Device 2 | . . . . 3 . 6 7 6 1 . 3 Storage 6 | . 14 14 11 9 5 . . . . . . Processor 9 | . . . . . . 23 23 23 25 23 19 Hackware 6 | . . . . 7 27 13 13 11 . 3 4 Protection 1 | . . . 4 5 . . . . . . . Energy Gun 4 | . . 22 9 12 2 1 . . . . 2 Energy Cannon 2 | . . . 8 3 . . . . . . . Ballistic Gun 5 | . 27 4 4 . . . . . . . . Piercing Weapon 1 | . . . . . . 1 5 5 5 4 . Naked Turns . | . . . . . . . . . . . . Heaviest Build 29 | 11 12 12 29 29 17 5 21 23 3 2 22 Greatest Support 48 | 20 20 20 48 48 21 6 32 32 13 29 30 Greatest Overweight (x) 4 | . . 2 1 . 4 1 2 1 . . . Average Overweight (x) . | . . . . . . . . . . . . Largest Inventory Capacity 8 | . 8 8 8 8 8 5 5 5 5 5 5 Average Capacity 6 | . 8 8 8 8 7 5 5 5 5 5 5 Most Carried 8 | . 8 7 8 8 8 5 5 5 5 5 5 Average Carried 6 | . 6 6 7 7 7 2 4 4 3 4 4 Final Capacity 8 | 8 8 8 8 8 5 5 5 5 5 5 5 Final Carried 8 | 6 7 6 8 8 5 5 5 5 3 5 4 Class Distribution -------------------- 39% | Mutant 19% | Hacker-Mutant 18% | Scavenger-Mutant 12% | Hacker-Scout 4% | Scout 3% | Hacker-Sprinter Dominant Class ---------------- Mutant | -10/Materials Mutant | -10/Mines Scavenger-Mutant | -9/Materials Mutant | -8/Materials Hacker-Mutant | -7/Factory Hacker-Scout | -6/Factory Hacker-Mutant | -5/Factory Hacker-Mutant | -5/Extension Scout | -4/Factory Mutant | -3/Research Scout | -2/Research Resources | -11 -10 -10 -9 -8 -7 -6 -5 -5 -4 -3 -2 ----------- Run | Yrd Mat Min Mat Mat Fac Fac Fac Ext Fac Res Res Matter Collected 1369 | 200 145 170 236 124 175 . 83 208 . . 28 Remotely . | . . . . . . . . . . . . Salvage Created 2050 | . 380 174 843 506 24 . 83 12 . . 28 Parts 137 | . 25 7 55 41 2 . 3 2 . . 2 Haulers Intercepted 4 | . 2 . . 2 . . . . . . . Recyclers Shooed . | . . . . . . . . . . . . Parts Field Recycled . | . . . . . . . . . . . . Retrieved Matter . | . . . . . . . . . . . . Parts Self-Destructed . | . . . . . . . . . . . . Prevented . | . . . . . . . . . . . . Kills | -11 -10 -10 -9 -8 -7 -6 -5 -5 -4 -3 -2 ------- Run | Yrd Mat Min Mat Mat Fac Fac Fac Ext Fac Res Res Combat Hostiles Destroyed 50 | . 9 4 25 11 . . 1 . . . . Melee 1 | . . . . . . . 1 . . . . Guns 31 | . 9 4 11 7 . . . . . . . Cannons 15 | . . . 14 1 . . . . . . . AOE 3 | . . . . 3 . . . . . . . Classes Destroyed 9 | . 3 . 3 3 . . . . . . . Worker 3 | . . . 1 . 1 . . . . . 1 Builder 5 | . . . . 4 . . . 1 . . . Tunneler 1 | . . . . 1 . . . . . . . Hauler 4 | . 2 . . 2 . . . . . . . Watcher 1 | . . . . 1 . . . . . . . Swarmer 17 | . 3 . 9 5 . . . . . . . Grunt 25 | . 6 4 12 3 . . . . . . . Duelist 2 | . . . 1 1 . . . . . . . Sentry 6 | . . . 3 2 . . 1 . . . . Best Kill Streak 10 | . 6 2 5 10 1 . 1 1 . . 1 Combat Bots Only 5 | . 4 2 5 3 . . 1 . . . . Max Kills in Single Turn 3 | . 1 1 2 3 1 . 1 1 . . 1 Gunslinging . | . . . . . . . . . . . . Exploded 1 | . . . . 1 . . . . . . . Melee 1 | . . . . . . . 1 . . . . Uniques/NPCs Destroyed . | . . . . . . . . . . . . Combat | -11 -10 -10 -9 -8 -7 -6 -5 -5 -4 -3 -2 -------- Run | Yrd Mat Min Mat Mat Fac Fac Fac Ext Fac Res Res Hostile Shots Fired 579 | . 40 32 102 57 141 52 18 31 12 52 42 Missed 252 | . 12 6 32 17 77 28 7 15 8 29 21 Damage Taken 4820 | . 276 354 793 591 663 348 256 511 92 442 494 Core 1927 | . 65 91 107 112 287 232 164 360 47 257 205 Absorbed by Shields . | . . . . . . . . . . . . Core Remaining (%) 71 | 100 . 37 73 79 59 72 . 47 95 80 . Volleys Fired 157 | . 31 24 57 36 3 3 . . . . 3 Largest 2 | . 2 2 2 2 1 1 . . . . 1 Hottest 150 | . 40 105 150 150 56 50 . . . . 88 Shots Fired 293 | . 62 46 114 62 3 3 . . . . 3 Gun 234 | . 62 46 71 46 3 3 . . . . 3 Cannon 49 | . . . 43 6 . . . . . . . Launcher 10 | . . . . 10 . . . . . . . Special . | . . . . . . . . . . . . Kinetic 103 | . 62 16 25 . . . . . . . . Thermal 177 | . . 30 89 52 3 . . . . . 3 Explosive 10 | . . . . 10 . . . . . . . Electromagnetic 3 | . . . . . . 3 . . . . . Robot Hit Streak 14 | . 9 10 12 14 7 . . . . . 1 Robot Miss Streak 7 | . 3 3 7 4 1 4 . . . . 6 Penetration Max . | . . . . . . . . . . . . Secondary Targets 1 | . . . 1 . . . . . . . . Max Gunslinging Chain 1 | . . . 1 . . . . . . . . Shots Hit Robots 188 | . 41 32 65 39 2 3 5 . . . 1 Core Hits 93 | . 16 9 34 28 1 . 3 1 . . 1 Critical Kills 2 | . 1 . . . . . . . . . 1 Critical Parts Destroyed 3 | . . 2 1 . . . . . . . . Critical Strikes 13 | . 1 2 5 2 . 2 . . . . 1 Burn 6 | . . . 4 2 . . . . . . . Destroy 5 | . 1 2 1 . . . . . . . 1 Impale 2 | . . . . . . 2 . . . . . Melee Attacks 21 | . . . . . 2 8 8 3 . . . Impact . | . . . . . . . . . . . . Slashing 2 | . . . . . 2 . . . . . . Piercing 19 | . . . . . . 8 8 3 . . . Sneak Attacks . | . . . . . . . . . . . . Combat Hostiles . | . . . . . . . . . . . . Follow-up Attacks . | . . . . . . . . . . . . Damage Inflicted 3858 | . 518 401 1189 1413 33 96 148 33 . . 27 Guns 1984 | . 516 401 497 510 33 . . . . . 27 Cannons 767 | . . . 667 100 . . . . . . . Explosions 836 | . . . . 803 . . . 33 . . . Melee 244 | . . . . . . 96 148 . . . . Ramming 27 | . 2 . 25 . . . . . . . . Kinetic 756 | . 516 136 104 . . . . . . . . Thermal 2028 | . . 265 1060 610 33 . . 33 . . 27 Explosive 803 | . . . . 803 . . . . . . . Electromagnetic . | . . . . . . . . . . . . Impact . | . . . . . . . . . . . . Slashing . | . . . . . . . . . . . . Piercing 244 | . . . . . . 96 148 . . . . Highest Corruption 4 | . . . . . . 3 . . . 4 . Average Corruption 2 | . . . . . . 3 . . . 2 . Corruption Purged . | . . . . . . . . . . . . Corruption Blocked . | . . . . . . . . . . . . Effects 5 | . . . . . . 5 . . . . . Message Errors 1 | . . . . . . 1 . . . . . Matter Fused 1 | . . . . . . 1 . . . . . Parts Rejected 1 | . . . . . . 1 . . . . . Data Loss (minor) 2 | . . . . . . 2 . . . . . Overload Shots . | . . . . . . . . . . . . Overflow Damage 124 | . . . 6 23 . 64 . 31 . . . Projectiles 3 | . . . 3 . . . . . . . . Explosions 54 | . . . . 23 . . . 31 . . . Melee 67 | . . . 3 . . 64 . . . . . Knockbacks . | . . . . . . . . . . . . Impact . | . . . . . . . . . . . . Kinetic . | . . . . . . . . . . . . Secondary . | . . . . . . . . . . . . Self-Inflicted Damage 164 | . . . . 52 . . . 112 . . . Shots 3 | . . . . 2 . . . 1 . . . Rammed . | . . . . . . . . . . . . Targets Rammed 2 | . 1 . 1 . . . . . . . . Kicked 2 | . 1 . 1 . . . . . . . . Crushed . | . . . . . . . . . . . . Highest Temperature 466 | . . 425 457 466 16 . . . . . . Average Temperature 148 | . . 170 143 167 6 . . . . . . Received Heat Transfer 1140 | . 102 219 246 207 225 30 27 39 18 9 18 Effects 16 | . . 1 12 3 . . . . . . . Shutdowns 3 | . . . 2 1 . . . . . . . Energy Bleed 4 | . . 1 3 . . . . . . . . Interference 3 | . . . 2 1 . . . . . . . Matter Decay 3 | . . . 2 1 . . . . . . . Damage (minor) 1 | . . . 1 . . . . . . . . Damage (major) 2 | . . . 2 . . . . . . . . Siege Activations . | . . . . . . . . . . . . Robots Corrupted . | . . . . . . . . . . . . Combat Hostiles . | . . . . . . . . . . . . Parts Fried . | . . . . . . . . . . . . Impact Corruptions 1 | . . . 1 . . . . . . . . Robots Melted . | . . . . . . . . . . . . Combat Hostiles . | . . . . . . . . . . . . Parts Melted 16 | . . 2 10 3 1 . . . . . . Heat Transferred 4568 | . . 633 2368 1406 74 . . 50 . . 37 Parts Sabotaged . | . . . . . . . . . . . . Parts Stolen . | . . . . . . . . . . . . Parts Stripped . | . . . . . . . . . . . . Power Chain Reactions . | . . . . . . . . . . . . Alert | -11 -10 -10 -9 -8 -7 -6 -5 -5 -4 -3 -2 ------- Run | Yrd Mat Min Mat Mat Fac Fac Fac Ext Fac Res Res Peak Influence 549 | . 182 172 502 549 463 285 134 204 165 295 489 Initial 249 | . . 52 66 211 249 210 79 65 94 86 159 Average 196 | . 56 126 277 286 346 224 104 132 125 143 249 Maximum Alert Level 2 | . . . 2 2 2 1 . 1 . 1 2 Low Security (%) 56 | . 100 100 22 30 . 24 100 97 100 79 62 Level 1 34 | . . . 65 43 60 75 . 2 . 20 19 Level 2 8 | . . . 12 26 39 . . . . . 17 Level 3 . | . . . . . . . . . . . . Level 4 . | . . . . . . . . . . . . Level 5 . | . . . . . . . . . . . . High Security . | . . . . . . . . . . . . Max Security . | . . . . . . . . . . . . Squads Dispatched 26 | . 3 . 5 3 3 3 1 2 . 4 2 Investigation 3 | . 1 . . . . . . 1 . 1 . Extermination 2 | . . . . . . 1 . . . 1 . Reinforcement 18 | . 2 . 5 . 3 2 1 1 . 2 2 Assault . | . . . . . . . . . . . . Garrison 3 | . . . . 3 . . . . . . . Intercept . | . . . . . . . . . . . . Searches Triggered . | . . . . . . . . . . . . Construction Impeded . | . . . . . . . . . . . . Haulers Reinforced . | . . . . . . . . . . . . Active Scanning Responses . | . . . . . . . . . . . . Cargo Convoy Interrupts . | . . . . . . . . . . . . Stealth | -11 -10 -10 -9 -8 -7 -6 -5 -5 -4 -3 -2 --------- Run | Yrd Mat Min Mat Mat Fac Fac Fac Ext Fac Res Res Distress Signals 11 | . 2 . 3 3 1 1 . . . . 1 Communications Jammed . | . . . . . . . . . . . . Distress Signals . | . . . . . . . . . . . . Times Spotted 188 | . 17 5 41 21 19 12 3 16 6 21 27 Peak Tracking Total 13 | . 6 2 5 7 7 5 1 9 6 11 13 Tactical Retreats 23 | . 1 1 3 2 4 3 1 1 . 3 4 Traps | -11 -10 -10 -9 -8 -7 -6 -5 -5 -4 -3 -2 ------- Run | Yrd Mat Min Mat Mat Fac Fac Fac Ext Fac Res Res Traps Triggered 4 | . 3 . . . . 1 . . . . . Indirectly . | . . . . . . . . . . . . Trap Hack Attempts . | . . . . . . . . . . . . Triggered . | . . . . . . . . . . . . Disarmed . | . . . . . . . . . . . . Reprogrammed . | . . . . . . . . . . . . Reused . | . . . . . . . . . . . . Traps Extracted . | . . . . . . . . . . . . Installed . | . . . . . . . . . . . . Triggered . | . . . . . . . . . . . . Machines | -11 -10 -10 -9 -8 -7 -6 -5 -5 -4 -3 -2 ---------- Run | Yrd Mat Min Mat Mat Fac Fac Fac Ext Fac Res Res Machines Disabled 3 | . . . . 1 . . . 2 . . . Max in Single Turn 2 | . . . . 1 . . . 2 . . . Garrison Access 2 | . . . . . 1 . . . . . 1 Energy Cycler 2 | . . . . . . . . 2 . . . Machines Repaired . | . . . . . . . . . . . . Machines Dismantled . | . . . . . . . . . . . . Machines Sabotaged . | . . . . . . . . . . . . Overloaded Fab Kills . | . . . . . . . . . . . . Hacking | -11 -10 -10 -9 -8 -7 -6 -5 -5 -4 -3 -2 --------- Run | Yrd Mat Min Mat Mat Fac Fac Fac Ext Fac Res Res Machines Accessed 28 | . 3 . 3 3 5 1 1 4 2 2 4 Terminals 25 | . 3 . 3 3 3 1 1 4 2 2 3 Fabricators 1 | . . . . . 1 . . . . . . Repair Stations . | . . . . . . . . . . . . Recycling Units . | . . . . . . . . . . . . Scanalyzers . | . . . . . . . . . . . . Garrison Access 2 | . . . . . 1 . . . . . 1 Total Hacks 74 | . 4 . 5 11 18 2 4 17 3 4 6 Successful 23 | . 3 . 1 2 5 1 . 6 2 1 2 Failed 51 | . 1 . 4 9 13 1 4 11 1 3 4 Catastrophic 17 | . . . 1 4 3 1 . 4 1 1 2 Database Lockouts . | . . . . . . . . . . . . Manual 22 | . . . 1 10 5 1 . 2 1 . 2 Terminals 68 | . 4 . 5 11 14 2 4 17 3 4 4 Fabricators 1 | . . . . . 1 . . . . . . Repair Stations . | . . . . . . . . . . . . Recycling Units . | . . . . . . . . . . . . Scanalyzers . | . . . . . . . . . . . . Garrison Access 5 | . . . . . 3 . . . . . 2 Terminal Hacks 17 | . 3 . 1 2 2 1 . 5 2 1 . Record 1 | . . . . . . . . . 1 . . Open Door 1 | . . . . . . . . 1 . . . Level Access Points 1 | . . . . . 1 . . . . . . Branch Access Points 2 | . 1 . . . . . . . 1 . . Alert Level 3 | . . . . 1 . . . 2 . . . Unreport Threat 1 | . . . . 1 . . . . . . . Locate Traps 3 | . 1 . . . . . . 1 . 1 . Zone Layout 5 | . 1 . 1 . 1 1 . 1 . . . Fabricator Hacks 1 | . . . . . 1 . . . . . . Network Status 1 | . . . . . 1 . . . . . . Repair Station Hacks . | . . . . . . . . . . . . Recycling Unit Hacks . | . . . . . . . . . . . . Scanalyzer . | . . . . . . . . . . . . Garrison Access Hacks 2 | . . . . . 1 . . . . . 1 Seal Access 2 | . . . . . 1 . . . . . 1 Unauthorized Hacks 3 | . . . . . 1 . . 1 . . 1 Terminals 3 | . . . . . 1 . . 1 . . 1 Botnet 3 | . . . . . 1 . . 1 . . 1 Fabricators . | . . . . . . . . . . . . Repair Stations . | . . . . . . . . . . . . Recycling Units . | . . . . . . . . . . . . Scanalyzers . | . . . . . . . . . . . . Garrison Access . | . . . . . . . . . . . . Data Cores Recovered . | . . . . . . . . . . . . Used . | . . . . . . . . . . . . Hacking Detections 21 | . 2 . 3 3 1 . 1 4 2 2 3 Full Trace Events 2 | . . . . . . . . 1 . 1 . Feedback Events 1 | . . . . . . . . . . 1 . Corruption 1 | . . . . . . . . . . 1 . Feedback Blocked . | . . . . . . . . . . . . Robot Schematics Acquired . | . . . . . . . . . . . . Robots Built . | . . . . . . . . . . . . Authchips . | . . . . . . . . . . . . Time . | . . . . . . . . . . . . Total Robot Build Rating . | . . . . . . . . . . . . Part Schematics Acquired . | . . . . . . . . . . . . Parts Built . | . . . . . . . . . . . . Authchips . | . . . . . . . . . . . . Time . | . . . . . . . . . . . . Total Part Build Rating . | . . . . . . . . . . . . Parts Repaired . | . . . . . . . . . . . . Time . | . . . . . . . . . . . . Parts Recycled . | . . . . . . . . . . . . Recycled Matter . | . . . . . . . . . . . . Retrieved Matter . | . . . . . . . . . . . . Retrieved Components . | . . . . . . . . . . . . Parts Scanalyzed . | . . . . . . . . . . . . Part Schematics Acquired . | . . . . . . . . . . . . Parts Damaged . | . . . . . . . . . . . . Bothacking | -11 -10 -10 -9 -8 -7 -6 -5 -5 -4 -3 -2 ------------ Run | Yrd Mat Min Mat Mat Fac Fac Fac Ext Fac Res Res Used RIF Installer . | . . . . . . . . . . . . Robots Hacked . | . . . . . . . . . . . . Non-combat . | . . . . . . . . . . . . Combat . | . . . . . . . . . . . . Robot Hacks Applied . | . . . . . . . . . . . . Relay Couplers Released . | . . . . . . . . . . . . Fabnet Peak Effective % . | . . . . . . . . . . . . Robots Rewired 1 | . . . . . 1 . . . . . . Allies Hacked . | . . . . . . . . . . . . Hacks Repelled . | . . . . . . . . . . . . Allies | -11 -10 -10 -9 -8 -7 -6 -5 -5 -4 -3 -2 -------- Run | Yrd Mat Min Mat Mat Fac Fac Fac Ext Fac Res Res Total Allies 4 | . . . . . 1 . . 3 . . . Largest Group 2 | . . . . . 1 . . 2 . . . Highest-Rated Group 62 | . . . . . 32 . . 62 . . . Highest-Rated Ally 39 | . . . . . 32 . . 39 . . . Total Orders . | . . . . . . . . . . . . Ally Attacks 21 | . . . . . 5 . . 16 . . . Total Damage 454 | . . . . . 201 . . 253 . . . Kills 3 | . . . . . 1 . . 2 . . . Allies Corrupted . | . . . . . . . . . . . . Allies Melted 1 | . . . . . . . . 1 . . . Intel | -11 -10 -10 -9 -8 -7 -6 -5 -5 -4 -3 -2 ------- Run | Yrd Mat Min Mat Mat Fac Fac Fac Ext Fac Res Res Robot Analysis Total . | . . . . . . . . . . . . Derelict Logs Recovered . | . . . . . . . . . . . . Drone Launches . | . . . . . . . . . . . . Drone Recoveries . | . . . . . . . . . . . . Exploration | -11 -10 -10 -9 -8 -7 -6 -5 -5 -4 -3 -2 ------------- Run | Yrd Mat Min Mat Mat Fac Fac Fac Ext Fac Res Res Turns Passed 4253 | . 729 199 975 337 331 533 341 211 112 294 191 Spaces Moved 4507 | 1 473 68 514 235 840 641 348 227 230 448 482 Core 356 | . . 3 . . 3 327 22 . . . 1 Treads . | . . . . . . . . . . . . Legs 1202 | 1 473 65 514 149 . . . . . . . Wheels 379 | . . . . . . . 262 117 . . . Hover 24 | . . . . . 24 . . . . . . Flight 2546 | . . . . 86 813 314 64 110 230 448 481 Fastest Speed 26 | 120 120 120 90 29 26 35 45 35 34 34 34 Average Speed 64 | 120 120 156 123 67 33 42 87 72 35 36 35 Slowest Speed 250 | 120 120 190 190 90 250 100 150 115 40 40 50 Overloaded Moves . | . . . . . . . . . . . . Propulsion Burnouts . | . . . . . . . . . . . . Robots Hopped 48 | . . . . . 16 5 . 6 1 9 11 Cave-ins Triggered . | . . . . . . . . . . . . Exploration Rate (%) 28 | 2 69 12 64 29 31 22 9 48 15 20 18 Regions Visited 11 Branch Regions 2 Pre-discovered Areas . | . . . . . . . . . . . . Known Exits Taken 7 | . 1 . . . 1 1 1 1 1 1 . Unknown Exits Taken 4 | 1 . 1 1 1 . . . . . . . Scrap Searched . | . . . . . . . . . . . . Spaces Dug 4 | . . . . . . 4 . . . . . Terrain Destroyed 90 | . . . 4 64 . 4 . 18 . . . Melee 4 | . . . . . . 4 . . . . . Projectile 5 | . . . 4 1 . . . . . . . AOE 81 | . . . . 63 . . . 18 . . . Terrain Rammed . | . . . . . . . . . . . . Walls Destroyed . | . . . . . . . . . . . . Machines Disabled . | . . . . . . . . . . . . Actions | -11 -10 -10 -9 -8 -7 -6 -5 -5 -4 -3 -2 --------- Run | Yrd Mat Min Mat Mat Fac Fac Fac Ext Fac Res Res Total 5468 | . 571 113 747 351 871 875 371 262 257 564 486 Wait 646 | . 54 15 138 49 . 210 1 33 26 120 . Move 4404 | . 472 67 513 234 807 631 347 215 227 429 462 Hop 44 | . . . . . 16 4 . 5 1 9 9 Pick Up 29 | . 3 . 9 4 6 3 1 1 . 2 . Fast Attach 56 | . 6 4 8 7 5 7 9 1 1 4 4 Attach 25 | . 1 1 1 7 5 6 . 1 2 . 1 Detach 11 | . . . . 4 2 3 1 . . . 1 Swap 10 | . . . 6 2 1 . . . . . 1 Drop 49 | . 3 2 14 8 10 . 4 3 . . 5 Fire 157 | . 31 24 57 36 3 3 . . . . 3 Melee 21 | . . . . . 2 8 8 3 . . . Ram . | . . . . . . . . . . . . Kick 2 | . 1 . 1 . . . . . . . . Crush . | . . . . . . . . . . . . Escape Stasis . | . . . . . . . . . . . . Rewire 14 | . . . . . 14 . . . . . . Trap . | . . . . . . . . . . . . Miscellaneous . | . . . . . . . . . . . . Route ------- -11/Scrapyard -10/Materials (discovered 3 exits: *Mat x2 / *Min) -10/Mines -9/Materials (discovered 4 exits: *Mat x3 / [*Min]) -8/Materials -7/Factory (discovered 4 exits: *Fac x4) -6/Factory -5/Factory -5/Extension -4/Factory (discovered 3 exits: *Res / Upp x2) -3/Research -2/Research (discovered 1 exit: [*Acc]) History --------- Turn | Location | Event 1 | -11/Scrapyard | Discovered new exit (range 0) 1 | -11/Scrapyard | Entered Materials 228 | -10/Materials | Discovered new exit (range 15) 273 | -10/Materials | Identified exit to Mines 317 | -10/Materials | Build established: Mutant 418 | -10/Materials | Discovered new exit (range 11) 730 | -10/Materials | Entered Mines 803 | -10/Mines | Met a Derelict bent on vengeance 856 | -10/Mines | Discovered new exit (range 9) 878 | -10/Mines | Core integrity fell below 50% 929 | -10/Mines | Entered Materials 929 | -9/Materials | Evolved 2 slots: Propulsion x2 1185 | -9/Materials | Discovered new exit (range 16) 1204 | -9/Materials | Build established: Scavenger-Mutant 1551 | -9/Materials | Discovered new exit (range 16) 1884 | -9/Materials | Discovered new exit (range 15) 1891 | -9/Materials | Discovered new exit (range 15) 1904 | -9/Materials | Entered another Materials area 1904 | -8/Materials | Evolved 2 slots: Utility x2 1941 | -8/Materials | Garrison activated, responded to threat 2011 | -8/Materials | Build established: Mutant 2232 | -8/Materials | Discovered new exit (range 16) 2241 | -8/Materials | Entered Factory 2241 | -7/Factory | Evolved 2 slots: Propulsion x1, Utility x1 2549 | -7/Factory | Lost 6 parts (2n4u) 2551 | -7/Factory | Identified exit to Factory 2572 | -7/Factory | Entered another Factory area 2572 | -6/Factory | Evolved 2 slots: Utility x2 2735 | -6/Factory | Spotted B-75 Beast 2778 | -6/Factory | Lost 3 parts (1n2u) 3024 | -6/Factory | Build established: Hacker-Scout 3092 | -6/Factory | Discovered new exit (range 22) 3102 | -6/Factory | Identified exit to Factory 3105 | -6/Factory | Entered another Factory area 3105 | -5/Factory | Evolved 2 slots: Utility x2 3381 | -5/Factory | Discovered new exit (range 16) 3396 | -5/Factory | Identified exit to Extension 3446 | -5/Factory | Entered Extension 3472 | -5/Extension | Build established: Hacker-Mutant 3503 | -5/Extension | Energy Cycler disabled 3504 | -5/Extension | Rescued a captive Derelict 3504 | -5/Extension | Rescued a captive Derelict 3506 | -5/Extension | Rescued a captive Derelict 3506 | -5/Extension | Rescued a captive Derelict 3507 | -5/Extension | Rescued a captive Derelict 3508 | -5/Extension | Rescued a captive Derelict 3509 | -5/Extension | Rescued a captive Derelict 3517 | -5/Extension | Rescued a captive Derelict 3521 | -5/Extension | Rescued a captive Derelict 3647 | -5/Extension | Spotted B-75 Beast 3650 | -5/Extension | Discovered new exit (range 20) 3650 | -5/Extension | Spotted B-75 Beast 3651 | -5/Extension | Extracted ID and sensor layout for unrecognized location from A7's data core 3657 | -5/Extension | Core integrity fell below 50% 3657 | -5/Extension | Identified exit to Factory 3657 | -5/Extension | Entered Factory 3657 | -4/Factory | Evolved 2 slots: Utility x2 3761 | -4/Factory | Identified exit to Upper Caves 3764 | -4/Factory | Discovered new exit (range 14) 3769 | -4/Factory | Identified exit to Research 3769 | -4/Factory | Entered Research 3769 | -3/Research | Evolved 2 slots: Utility x2 3969 | -3/Research | Spotted B-86 Titan 4012 | -3/Research | Spotted B-86 Titan 4025 | -3/Research | Build established: Mutant 4049 | -3/Research | Discovered new exit (range 12) 4053 | -3/Research | Identified exit to Research 4063 | -3/Research | Entered another Research area 4063 | -2/Research | Evolved 2 slots: Utility x2 4108 | -2/Research | Spotted B-90 Cyclops 4190 | -2/Research | Discovered new exit (range 19) 4254 | -2/Research | Self-destructed Last Messages --------------- 04179_ Connecting with Terminal... 04181_ K-01 Serf cleans the Terminal. 04183_ O-16 Technician: "IFF HANDSHAKE FAILED. SECURING TERMINAL." 04190_ EXIT=FOUND 04192_ ALERT: Hostiles spotted, dispatching reinforcements to Terminal R015. 04215_ ALERT: Suspicious intruders detected, dispatching Cutter reinforcements to area. 04226_ K-01 Serf destroyed. 04226_ Field Propulsion Array destroyed. 04227_ Dropped Dispersion Rifle. 04227_ Dropped Com. Wheel. 04235_ Dropped Lgt. Quantum Reactor. 04236_ Acquired Lgt. Antimatter Reactor. 04238_ Imp. Sensor Array destroyed. 04242_ Impulse Thruster destroyed. 04242_ Dropped Lgt. Antimatter Reactor. 04253_ Particle Synthesizer disabled. 04253_ Q-thruster destroyed. Map ----- +----------------------------------------------------+ | ################## ############# # #???? | | ??# #???????# #?# # # #???? | | ??# #???????# #?# ! # + = #???? | | ??# #???????# #?# #+########???? | | ??# #???????# #?# # #?????? | | ??# #???????# #?######+#### #?????? | | ???? ????????# #??????# #??# #?????? | | ???###+###???????# #??????# #??# #?????? | | ???# ######### ######## #### #?????? | | ???# / #?????? | | ???# ######### #######################?????? | | ???# #????########???????????????????????????? | | ???# #??? ?????????????????????????????? | | ???### ###??? ??????????????????????????????? | | ?????# #???? """"""" ????????????????????????????? | | ?????# ####? """"""" #?????????????????????????? | | ?????# # """"""" ##############????????????? | | ?????# # # #????????????? | | ?????# + # #????????????? | | ?????# # """"""" # """ """ #????????????? | | ?????# # """""""???# """ """ #????????????? | | ?????# #? """"""????# """ """ #????????????? | | ?????# !#? ????#ss""" """ #????????????? | | ?????# *%#?? ??# "" """ #????????????? | | ?????# ###########??# p #????????????? | | ?????# # #??# @s #????????????? | | + # #??# s #????????????? | | # # ???# #????????????? | | ! # =#?? ?????# s #????????????? | | ###### [#####+#############+#######????????????? | | #?????????????????? | | * #?????????????????? | | #?????????????????? | | #?????????????????? | | #############+######/###########?????????????????? | | ??????????????????# = #????????????????????? | | ??????????????????# #????????????????????? | | ??????????????????# #????????????????????? | | ??????????????????# """ #????????????????????? | | ??????????????????# """ #????????????????????? | | ??????????????????# """ #????????????????????? | | ??????????????????#* #????????????????????? | | ??????????????????# #????????????????????? | | ??????????????????###########????????????????????? | | ?????????????????????????????????????????????????? | | ?????????????????????????????????????????????????? | | ?????????????????????????????????????????????????? | | ?????????????????????????????????????????????????? | | ?????????????????????????????????????????????????? | | ?????????????????????????????????????????????????? | +----------------------------------------------------+ Best States ------------- Heat Dissipation 49 Energy Generation 25 Energy Capacity 315 Matter Stores 300 Matter Capacity 300 Sight Range 22 Robot Scan Range 15 Terrain Scan Range 16 Terrain Scan Density 310 Power Amplification 20 Armor Coverage 150 Evasion (%) 64 Offensive Hacking 10 Defensive Hacking 40 Trap Extractor Capacity 8 Item Schematics ----------------- None Robot Schematics ------------------ None Fabricated ------------ Nothing Alien Tech Used ----------------- None Achievements -------------- None Challenges ------------ None Game ------ Seed ImpactWardroneWarhead Manual? 0 Play Time 00:53:39 Cumulative 88.6 hours Start 2024.06.15 @ 11:18:10 End 2024.06.15 @ 12:37:01 Sessions 1 Manual Loads 0 Difficulty Rogue Special Mode None Game No. 133 Rogue 48 Adventurer 79 Explorer 6 Win Type - Total 2 Types 2/0/0/0/0/0/0/0/0 Lore% 42 Gallery% 56 Achievement% 42 Wizard Run 0 Options --------- Layout 1 ASCII 0 Keyboard 0 Movement Numpad Keybinds 0 Fullscreen 2 Font 24/Smallcaps Map View 50x35 Zoom Use 0% Tactical HUD 1 Map Filters NONE Filters NONE Steam 1 RUN: 85daffb0-abdc-40d9-9e25-e3b973779bc6